fUST/lending_fUST_20240121
["ID","MTS","AMOUNT","RATE_DAILY","PERIOD"]
[312349622,1705812638182,-500.0,0.00030136,2]
[312349623,1705812638191,-500.0,0.00030136,2]
[312349624,1705812638200,-500.0,0.00030136,2]
[312349625,1705812638210,-501.69276523,0.00030136,2]
[312349626,1705812638221,-500.0,0.00030136,2]
[312349627,1705812638231,-500.0,0.00030136,2]
[312349628,1705812638242,-500.0,0.00030136,2]
[312349629,1705812638252,-500.0,0.00030136,2]
[312349630,1705812638263,-500.0,0.00030136,2]
[312349631,1705812638272,-500.0,0.00030136,2]
[312349632,1705812638281,-500.0,0.00030136,2]
[312349633,1705812638290,-258.0615188,0.00030136,2]
[312349634,1705812638300,-500.0,0.00030136,2]
[312349635,1705812638309,-500.0,0.00030136,2]
[312349636,1705812638319,-500.0,0.00030136,2]
[312349637,1705812638328,-500.0,0.00030136,2]
[312349638,1705812638338,-500.0,0.00030136,2]
[312349639,1705812638348,-150.0,0.00030136,2]
[312349640,1705812638357,-500.0,0.00030136,2]
[312349641,1705812638367,-673.27,0.00030136,2]
[312349642,1705812638378,-174.68987219,0.00030136,2]
[312349643,1705812638387,-500.0,0.00030136,2]
[312349644,1705812638398,-559.89524355,0.00030136,2]
[312349645,1705812638407,-500.0,0.00030136,2]
[312349646,1705812638417,-500.0,0.00030136,2]
[312349647,1705812638426,-1000.0,0.00030136,2]
[312349648,1705812638435,-500.0,0.00030136,2]
[312349649,1705812638444,-500.0,0.00030136,2]
[312349650,1705812638454,-500.0,0.00030136,2]
[312349651,1705812638463,-500.0,0.00030136,2]
[312349652,1705812638472,-508.75647265,0.00030136,2]
[312349653,1705812638481,-709.92,0.00030136,2]
[312349654,1705812638490,-500.0,0.00030136,2]
[312349655,1705812638499,-500.0,0.00030136,2]
[312349656,1705812638508,-500.39935536,0.00030136,2]
[312349657,1705812638518,-500.0,0.00030136,2]
[312349658,1705812638527,-234.30935535,0.00030136,2]
[312349659,1705812638541,-500.0,0.00030136,2]
[312349660,1705812638550,-500.0,0.00030136,2]
[312349661,1705812638560,-569.44,0.00030136,2]
[312349662,1705812638570,-500.0,0.00030136,2]
[312349663,1705812638580,-500.0,0.00030136,2]
[312349664,1705812638589,-500.0,0.00030136,2]
[312349665,1705812638598,-500.0,0.00030136,2]
[312349666,1705812638607,-500.0,0.00030136,2]
[312349667,1705812638617,-500.0,0.00030136,2]
[312349668,1705812638627,-500.0,0.00030136,7]
[312349669,1705812638636,-500.0,0.00030136,2]
[312349670,1705812638645,-233.32188471,0.00030136,2]
[312349671,1705812638655,-500.0,0.00030136,2]
[312349672,1705812638664,-500.0,0.00030136,2]
[312349673,1705812638674,-500.0,0.00030136,2]
[312349674,1705812638683,-500.0,0.00030136,2]
[312349675,1705812638693,-500.0,0.00030136,2]
[312349676,1705812638702,-500.0,0.00030136,2]
[312349677,1705812638712,-724.54,0.00030136,2]
[312349678,1705812638722,-500.0,0.00030136,2]
[312349679,1705812638732,-500.0,0.00030136,2]
[312349680,1705812638742,-500.0,0.00030136,2]
[312349681,1705812638751,-560.17745745,0.00030136,2]
[312349682,1705812638760,-533.55959299,0.00030136,2]
[312349683,1705812638769,-500.0,0.00030136,2]
[312349684,1705812638778,-168.16633334,0.00030136,2]
[312349685,1705812638789,-500.0,0.00030136,2]
[312349686,1705812638801,-500.0,0.00030136,2]
[312349687,1705812638813,-500.0,0.00030136,2]
[312349688,1705812638823,-500.0,0.00030136,2]
[312349689,1705812638835,-500.0,0.00030136,2]
[312349690,1705812638846,-500.0,0.00030136,2]
[312349691,1705812638855,-500.0,0.00030136,2]
[312349692,1705812638866,-500.0,0.00030136,2]
[312349693,1705812638877,-434.59026681,0.00030136,2]
[312349694,1705812638887,-500.0,0.00030136,2]
[312349695,1705812638897,-502.74317768,0.00030136,2]
[312349696,1705812638907,-500.0,0.00030136,2]
[312349697,1705812638916,-382.68499965,0.00030136,2]
[312349698,1705812639047,-500.0,0.00030136,2]
[312349699,1705812639057,-500.0,0.00030136,2]
[312349700,1705812639067,-500.0,0.00030136,2]
[312349701,1705812639079,-500.0,0.00030136,2]
[312349702,1705812639088,-521.81338409,0.00030136,2]
[312349703,1705812639098,-500.0,0.00030136,2]
[312349704,1705812639108,-443.47998766,0.00030136,2]
[312349705,1705812639119,-588.63674793,0.00030136,2]
[312349706,1705812639129,-195.07770623,0.00030136,2]
[312349707,1705812639138,-500.0,0.00030136,2]
[312349708,1705812639149,-501.75462664,0.00030136,2]
[312349709,1705812639160,-503.55499181,0.00030136,2]
[312349710,1705812639169,-1024.7,0.00030136,2]
[312349711,1705812639180,-220.0,0.00030136,2]
[312349712,1705812639189,-298.90422655,0.00030136,2]
[312349713,1705812639199,-500.0,0.00030136,2]
[312349714,1705812639208,-505.60608591,0.00030136,2]
[312349715,1705812639218,-500.0,0.00030136,2]
[312349716,1705812639227,-500.0,0.00030136,2]
[312349717,1705812639236,-500.0,0.00030136,2]
[312349718,1705812639246,-500.0,0.00030136,2]
[312349719,1705812639255,-500.0,0.00030136,2]
[312349720,1705812639265,-500.0,0.00030136,2]
[312349721,1705812639275,-500.0,0.00030136,2]
[312349722,1705812639284,-500.0,0.00030136,2]
[312349723,1705812639294,-336.99499523,0.00030136,2]
[312349724,1705812639303,-500.0,0.00030136,2]
[312349725,1705812639312,-618.39119717,0.00030136,2]
[312349726,1705812639321,-695.76,0.00030136,2]
[312349727,1705812639331,-500.0,0.00030136,2]
[312349728,1705812639340,-500.0,0.00030136,2]
[312349729,1705812639349,-500.41383946,0.00030136,2]
[312349730,1705812639358,-500.0,0.00030136,2]
[312349731,1705812639367,-500.0,0.00030136,2]
[312349732,1705812639377,-500.70971563,0.00030136,2]
[312349733,1705812639387,-500.0,0.00030136,2]
[312349734,1705812639398,-500.0,0.00030136,2]
[312349735,1705812639408,-500.0,0.00030136,2]
[312349736,1705812639417,-500.0,0.00030136,2]
[312349737,1705812639427,-504.11017629,0.00030136,2]
[312349738,1705812639436,-500.39620998,0.00030136,2]
[312349739,1705812639446,-428.19019703,0.00030136,2]
[312349740,1705812639456,-500.0,0.00030136,2]
[312349741,1705812639465,-501.19961587,0.00030136,2]
[312349742,1705812639476,-530.2390323,0.00030136,2]
[312349743,1705812639485,-511.20407066,0.00030136,2]
[312349744,1705812639495,-509.35654559,0.00030136,2]
[312349745,1705812639505,-500.0,0.00030136,2]
[312349746,1705812639515,-500.0,0.00030136,2]
[312349747,1705812639525,-238.58559193,0.00030136,2]
[312349748,1705812639538,-505.46815524,0.00030136,2]
[312349749,1705812639549,-500.0,0.00030136,2]
[312349750,1705812639558,-500.0,0.00030136,2]
[312349751,1705812639567,-1274.55,0.00030136,2]
[312349752,1705812639577,-500.0,0.00030136,2]
[312349753,1705812639586,-500.0,0.00030136,2]
[312349754,1705812639596,-500.0,0.00030136,2]
[312349755,1705812639606,-500.0,0.00030136,2]
[312349756,1705812639618,-500.0,0.00030136,2]
[312349757,1705812639628,-500.0,0.00030136,2]
[312349758,1705812639638,-500.91072414,0.00030136,2]
[312349759,1705812639648,-500.0,0.00030136,2]
[312349760,1705812639658,-500.0,0.00030136,2]
[312349761,1705812639667,-500.0,0.00030136,2]
[312349762,1705812639676,-500.0,0.00030136,2]
[312349763,1705812639686,-500.0,0.00030136,2]
[312349764,1705812639696,-10000.0,0.00030136,10]
[312349765,1705812639706,-511.79386272,0.00030136,2]
[312349766,1705812639716,-500.0,0.00030136,2]
[312349767,1705812639727,-500.0,0.00030136,2]
[312349768,1705812639736,-500.0723576,0.00030136,2]
[312349769,1705812639745,-501.09123167,0.00030136,2]
[312349770,1705812639754,-462.21722672,0.00030136,2]
[312349771,1705812639763,-500.0,0.00030136,2]
[312349772,1705812639772,-500.0,0.00030136,2]
[312349773,1705812639782,-500.0,0.00030136,2]
[312349774,1705812639793,-500.9344997,0.00030136,2]
[312349775,1705812639802,-297.22570451,0.00030136,2]
[312349776,1705812639812,-508.80446003,0.00030136,2]
[312349777,1705812639823,-500.0,0.00030136,2]
[312349778,1705812639834,-500.0,0.00030136,2]
[312349779,1705812639843,-500.0,0.00030136,2]
[312349780,1705812639853,-500.0,0.00030136,2]
[312349781,1705812639864,-500.0,0.00030136,2]
[312349782,1705812639874,-500.0,0.00030136,2]
[312349784,1705812639884,-500.0,0.00030136,2]
[312349786,1705812639893,-500.0,0.00030136,2]
[312349788,1705812639904,-500.0,0.00030136,2]
[312349790,1705812639913,-500.0,0.00030136,2]
[312349792,1705812639922,-1142.29,0.00030136,2]
[312349794,1705812639931,-500.0,0.00030136,2]
[312349796,1705812639941,-500.0,0.00030136,2]
[312349797,1705812639950,-500.0,0.00030136,2]
[312349799,1705812639960,-611.2104419,0.00030136,2]
[312349801,1705812639969,-500.0,0.00030136,2]
[312349803,1705812639978,-500.0,0.00030136,2]
[312349805,1705812639987,-500.0,0.00030136,2]
[312349806,1705812639995,-500.0,0.00030136,2]
[312349808,1705812640006,-500.0,0.00030136,2]
[312349810,1705812640015,-508.70316251,0.00030136,2]
[312349812,1705812640023,-500.0,0.00030136,2]
[312349813,1705812640033,-204.32141091,0.00030136,2]
[312349814,1705812640042,-680.21,0.00030136,2]
[312349815,1705812640052,-680.21,0.00030136,2]
[312349816,1705812640063,-680.21,0.00030136,2]
[312349817,1705812640073,-680.21,0.00030136,2]
[312349818,1705812640084,-680.21,0.00030136,2]
[312349819,1705812640095,-680.21,0.00030136,2]
[312349820,1705812640105,-514.87567148,0.00030136,2]
[312349821,1705812640115,-680.21,0.00030136,2]
[312349823,1705812640124,-680.21,0.00030136,2]
[312349825,1705812640133,-680.21,0.00030136,2]
[312349827,1705812640142,-680.21,0.00030136,2]
[312349829,1705812640151,-680.21,0.00030136,2]
[312349831,1705812640160,-680.21,0.00030136,2]
[312349833,1705812640168,-500.0,0.00030136,2]
[312349834,1705812640177,-500.0,0.00030136,2]
[312349836,1705812640187,-500.0,0.00030136,2]
[312349838,1705812640196,-500.0,0.00030136,2]
[312349839,1705812640205,-1018.9,0.00030136,2]
[312349840,1705812640214,-500.0,0.00030136,2]
[312349841,1705812640223,-500.0,0.00030136,2]
[312349842,1705812640232,-694.12,0.00030136,2]
[312349843,1705812640242,-1000.0,0.00030136,2]
[312349844,1705812640251,-500.0,0.00030136,2]
[312349845,1705812640261,-500.0,0.00030136,2]
[312349846,1705812640270,-500.0,0.00030136,2]
[312349847,1705812640280,-500.0,0.00030136,2]
[312349848,1705812640291,-500.0,0.00030136,2]
[312349849,1705812640301,-563.13314171,0.00030136,2]
[312349850,1705812640311,-500.0,0.00030136,2]
[312349851,1705812640320,-2272.13,0.00030136,2]
[312349852,1705812640329,-500.0,0.00030136,2]
[312349853,1705812640339,-500.0,0.00030136,2]
[312349854,1705812640351,-500.0,0.00030136,2]
[312349855,1705812640361,-500.0,0.00030136,2]
[312349856,1705812640371,-500.0,0.00030136,2]
[312349857,1705812640381,-500.0,0.00030136,2]
[312349858,1705812640390,-463.93705094,0.00030136,2]
[312349859,1705812640399,-500.0,0.00030136,2]
[312349860,1705812640410,-500.0,0.00030136,2]
[312349861,1705812640418,-500.0,0.00030136,2]
[312349862,1705812640429,-500.0,0.00030136,2]
[312349863,1705812640439,-1417.81,0.00030136,2]
[312349864,1705812640448,-500.0,0.00030136,2]
[312349865,1705812640457,-500.0,0.00030136,2]
[312349866,1705812640466,-500.0,0.00030136,2]
[312349867,1705812640475,-502.46105289,0.00030136,2]
[312349868,1705812640485,-1048.15,0.00030136,2]
[312349869,1705812640494,-500.0,0.00030136,2]
[312349870,1705812640502,-500.0,0.00030136,2]
[312349871,1705812640511,-521.19699374,0.00030136,2]
[312349872,1705812640520,-500.0,0.00030136,2]
[312349873,1705812640529,-500.0,0.00030136,2]
[312349874,1705812640542,-500.0,0.00030136,2]
[312349875,1705812640550,-502.32093715,0.00030136,2]
[312349876,1705812640559,-521.15,0.00030136,2]
[312349877,1705812640568,-1000.0,0.00030136,5]
[312349878,1705812640578,-500.0,0.00030136,2]
[312349879,1705812640587,-660.09,0.00030136,2]
[312349880,1705812640595,-500.0,0.00030136,2]
[312349881,1705812640604,-500.0,0.00030136,2]
[312349882,1705812640613,-562.18289827,0.00030136,2]
[312349883,1705812640621,-500.0,0.00030136,2]
[312349884,1705812640631,-1113.96,0.00030136,2]
[312349885,1705812640640,-500.0,0.00030136,2]
[312349886,1705812640648,-500.0,0.00030136,2]
[312349887,1705812640657,-500.0,0.00030136,2]
[312349888,1705812640666,-500.0,0.00030136,2]
[312349889,1705812640674,-500.0,0.00030136,2]
[312349890,1705812640683,-500.0,0.00030136,2]
[312349891,1705812640692,-298.60857659,0.00030136,2]
[312349892,1705812640702,-500.0,0.00030136,2]
[312349893,1705812640711,-500.0,0.00030136,2]
[312349894,1705812640720,-500.0,0.00030136,2]
[312349895,1705812640731,-182.86627374,0.00030136,2]
[312349896,1705812640740,-500.0,0.00030136,2]
[312349897,1705812640750,-894.92,0.00030136,2]
[312349898,1705812640760,-500.0,0.00030136,2]
[312349899,1705812640769,-637.23312708,0.00030136,2]
[312349900,1705812640779,-500.0,0.00030136,2]
[312349901,1705812640790,-500.0,0.00030136,2]
[312349902,1705812640800,-800.21,0.00030136,2]
[312349903,1705812640811,-218.57426619,0.00030136,2]
[312349904,1705812640821,-500.0,0.00030136,2]
[312349905,1705812640830,-1654.95,0.00030136,2]
[312349906,1705812640840,-500.0,0.00030136,2]
[312349907,1705812640852,-598.57591787,0.00030136,2]
[312349908,1705812640862,-500.0,0.00030136,2]
[312349909,1705812640872,-500.33,0.00030136,2]
[312349910,1705812640881,-500.0,0.00030136,2]
[312349911,1705812640891,-500.0,0.00030136,2]
[312349912,1705812640901,-500.0,0.00030136,2]
[312349913,1705812640911,-500.0,0.00030136,2]
[312349914,1705812640920,-500.0,0.00030136,2]
[312349915,1705812640930,-500.0,0.00030136,2]
[312349916,1705812640939,-500.0,0.00030136,2]
[312349917,1705812640949,-500.0,0.00030136,2]
[312349918,1705812640960,-401.01484293,0.00030136,2]
[312349919,1705812640970,-500.0,0.00030136,2]
[312349920,1705812640979,-500.0,0.00030136,2]
[312349921,1705812640991,-614.72,0.00030136,2]
[312349922,1705812641000,-500.0,0.00030136,2]
[312349923,1705812641011,-1000.0,0.00030136,2]
[312349924,1705812641021,-500.0,0.00030136,2]
[312349925,1705812641032,-500.0,0.00030136,2]
[312349926,1705812641042,-300.73816161,0.00030136,2]
[312349927,1705812641053,-500.0,0.00030136,2]
[312349928,1705812641061,-500.0,0.00030136,2]
[312349929,1705812641070,-500.0,0.00030136,2]
[312349930,1705812641079,-685.26,0.00030136,2]
[312349931,1705812641088,-538.69538608,0.00030136,2]
[312349932,1705812641098,-500.0,0.00030136,2]
[312349933,1705812641107,-500.0,0.00030136,2]
[312349934,1705812641116,-500.0,0.00030136,2]
[312349935,1705812641125,-500.0,0.00030136,2]
[312349936,1705812641134,-500.0,0.00030136,2]
[312349937,1705812641144,-500.0,0.00030136,2]
[312349938,1705812641153,-500.0,0.00030136,2]
[312349939,1705812641162,-573.72,0.00030136,2]
[312349940,1705812641171,-500.0,0.00030136,2]
[312349941,1705812641179,-500.0,0.00030136,2]
[312349942,1705812641188,-500.0,0.00030136,2]
[312349943,1705812641197,-500.0,0.00030136,2]
[312349944,1705812641207,-500.0,0.00030136,14]
[312349945,1705812641217,-712.05,0.00030136,2]
[312349946,1705812641226,-500.0,0.00030136,2]
[312349947,1705812641235,-200.33382992,0.00030136,2]
[312349948,1705812641244,-300.0,0.00030136,2]
[312349949,1705812641253,-500.0,0.00030136,2]
[312349950,1705812641262,-500.0,0.00030136,2]
[312349951,1705812641272,-500.0,0.00030136,2]
[312349952,1705812641282,-500.0,0.00030136,2]
[312349953,1705812641291,-500.0,0.00030136,2]
[312349954,1705812641300,-500.0,0.00030136,2]
[312349955,1705812641309,-500.0,0.00030136,2]
[312349956,1705812641319,-200.0,0.00030136,2]
[312349957,1705812641328,-500.0,0.00030136,2]
[312349958,1705812641338,-500.0,0.00030136,2]
[312349959,1705812641347,-1364.95,0.00030136,2]
[312349960,1705812641356,-500.0,0.00030136,2]
[312349961,1705812641365,-727.28,0.00030136,2]
[312349962,1705812641375,-500.0,0.00030136,2]
[312349963,1705812641384,-500.0,0.00030136,2]
[312349964,1705812641393,-500.0,0.00030136,2]
[312349965,1705812641402,-679.36,0.00030136,2]
[312349966,1705812641411,-1467.11,0.00030136,2]
[312349967,1705812641420,-733.55,0.00030136,2]
[312349968,1705812641524,-500.0,0.00030136,2]
[312349969,1705812641536,-502.95,0.00030136,2]
[312349970,1705812641547,-500.0,0.00030136,2]
[312349971,1705812641556,-500.0,0.00030136,2]
[312349972,1705812641565,-500.0,0.00030136,2]
[312349973,1705812641575,-511.00954022,0.00030136,2]
[312349974,1705812641586,-194.53105503,0.00030136,2]
[312349975,1705812641595,-405.66488664,0.00030136,2]
[312349976,1705812641605,-500.0,0.00030136,2]
[312349977,1705812641614,-504.75953781,0.00030136,2]
[312349978,1705812641624,-501.50658413,0.00030136,2]
[312349979,1705812641634,-864.54,0.00030136,2]
[312349980,1705812641643,-476.29748641,0.00030136,2]
[312349981,1705812641652,-193.76594272,0.00030136,2]
[312349982,1705812641662,-500.0,0.00030136,2]
[312349983,1705812641672,-500.0,0.00030136,2]
[312349984,1705812641681,-500.0,0.00030136,2]
[312349985,1705812641690,-500.0,0.00030136,2]
[312349986,1705812641699,-576.64140279,0.00030136,2]
[312349987,1705812641710,-195.83449237,0.00030136,2]
[312349988,1705812641720,-500.0,0.00030136,2]
[312349989,1705812641729,-500.0,0.00030136,2]
[312349990,1705812641738,-500.0,0.00030136,2]
[312349991,1705812641748,-500.0,0.00030136,2]
[312349992,1705812641757,-8821.18,0.00030136,2]
[312349993,1705812641766,-500.0,0.00030136,2]
[312349994,1705812641776,-500.16510899,0.00030136,2]
[312349995,1705812641785,-500.0,0.00030136,2]
[312349996,1705812641794,-500.0,0.00030136,2]
[312349997,1705812641804,-871.76,0.00030136,2]
[312349998,1705812641813,-500.0,0.00030136,2]
[312349999,1705812641823,-500.0,0.00030136,2]
[312350000,1705812641833,-568.91,0.00030136,2]
[312350001,1705812641842,-500.0,0.00030136,2]
[312350002,1705812641851,-500.0,0.00030136,2]
[312350003,1705812641860,-3009.28,0.00030136,2]
[312350004,1705812641870,-647.98810351,0.00030136,2]
[312350005,1705812641879,-500.0,0.00030136,2]
[312350006,1705812641889,-500.0,0.00030136,2]
[312350007,1705812641898,-5955.15,0.00030136,2]
[312350008,1705812641907,-206.72634679,0.00030136,2]
[312350009,1705812641916,-500.0,0.00030136,2]
[312350010,1705812641926,-334.31172185,0.00030136,2]
[312350011,1705812641935,-500.0,0.00030136,2]
[312350012,1705812641944,-545.45949726,0.00030136,2]
[312350013,1705812641953,-500.0,0.00030136,2]
[312350014,1705812641962,-500.0,0.00030136,2]
[312350015,1705812641971,-500.0,0.00030136,2]
[312350016,1705812641980,-501.1849965,0.00030136,2]
[312350017,1705812641991,-500.0,0.00030136,2]
[312350018,1705812642000,-500.0,0.00030136,2]
[312350019,1705812642009,-500.0,0.00030136,2]
[312350020,1705812642018,-26722.62,0.00030136,2]
[312350021,1705812642028,-600.42402773,0.00030136,2]
[312350022,1705812642037,-423.8933239,0.00030136,2]
[312350023,1705812642046,-500.0,0.00030136,2]
[312350024,1705812642056,-500.0,0.00030136,2]
[312350025,1705812642065,-500.0,0.00030136,2]
[312350026,1705812642074,-500.0,0.00030136,2]
[312350027,1705812642083,-500.0,0.00030136,2]
[312350028,1705812642092,-500.90581918,0.00030136,2]
[312350029,1705812642101,-540.71,0.00030136,2]
[312350030,1705812642110,-579.35774494,0.00030136,2]
[312350031,1705812642120,-506.09445052,0.00030136,2]
[312350032,1705812642129,-459.32992208,0.00030136,2]
[312350033,1705812642139,-1162.59,0.00030136,2]
[312350034,1705812642148,-500.0,0.00030136,2]
[312350035,1705812642158,-500.0,0.00030136,2]
[312350036,1705812642166,-364.93854226,0.00030136,2]
[312350037,1705812642176,-500.0,0.00030136,2]
[312350038,1705812642186,-500.0,0.00030136,2]
[312350039,1705812642195,-500.0,0.00030136,2]
[312350040,1705812642205,-500.0,0.00030136,2]
[312350041,1705812642214,-500.0,0.00030136,2]
[312350042,1705812642223,-500.0,0.00030136,2]
[312350043,1705812642232,-500.0,0.00030136,2]
[312350044,1705812642242,-500.74589736,0.00030136,2]
[312350045,1705812642251,-500.0,0.00030136,2]
[312350046,1705812642260,-570.40917885,0.00030136,2]
[312350047,1705812642270,-500.0,0.00030136,2]
[312350048,1705812642279,-1244.29,0.00030136,2]
[312350049,1705812642288,-500.0,0.00030136,2]
[312350050,1705812642298,-500.0,0.00030136,2]
[312350051,1705812642307,-5726.0,0.00030136,2]
[312350052,1705812642317,-500.0,0.00030136,2]
[312350053,1705812642326,-500.0,0.00030136,2]
[312350054,1705812642335,-2206.64,0.00030136,2]
[312350055,1705812642344,-1166.09,0.00030136,2]
[312350056,1705812642354,-500.76303151,0.00030136,2]
[312350057,1705812642363,-7925.41,0.00030136,2]
[312350059,1705812642372,-799.24,0.00030136,2]
[312350060,1705812642381,-507.05888226,0.00030136,2]
[312350062,1705812642390,-500.0,0.00030136,2]
[312350064,1705812642399,-500.0,0.00030136,2]
[312350065,1705812642408,-8241.9,0.00030136,2]
[312350067,1705812642417,-750.48,0.00030136,2]
[312350069,1705812642427,-1483.62,0.00030136,2]
[312350071,1705812642436,-500.0,0.00030136,2]
[312350073,1705812642446,-513.36744023,0.00030136,2]
[312350075,1705812642455,-500.0,0.00030136,2]
[312350077,1705812642464,-217.58022648,0.00030136,2]
[312350079,1705812642473,-500.0,0.00030136,2]
[312350082,1705812642482,-500.0,0.00030136,2]
[312350086,1705812642491,-500.0,0.00030136,2]
[312350089,1705812642501,-500.0,0.00030136,2]
[312350091,1705812642510,-2108.75,0.00030136,2]
[312350092,1705812642519,-1000.0,0.00030136,2]
[312350093,1705812642528,-1292.61,0.00030136,2]
[312350094,1705812642539,-500.0,0.00030136,2]
[312350096,1705812642549,-14506.98,0.00030136,2]
[312350098,1705812642558,-500.0,0.00030136,2]
[312350100,1705812642567,-500.0,0.00030136,2]
[312350102,1705812642575,-500.0,0.00030136,2]
[312350103,1705812642585,-795.44,0.00030136,2]
[312350105,1705812642594,-500.0,0.00030136,2]
[312350106,1705812642604,-500.0,0.00030136,2]
[312350107,1705812642614,-500.0,0.00030136,2]
[312350108,1705812642634,-500.0,0.00030136,2]
[312350109,1705812642667,-1777.45,0.00030136,2]
[312350110,1705812642677,-500.0,0.00030136,2]
[312350111,1705812642686,-500.0,0.00030136,2]
[312350112,1705812642695,-500.0,0.00030136,2]
[312350113,1705812642705,-500.0,0.00030136,2]
[312350114,1705812642714,-500.0,0.00030136,2]
[312350116,1705812642723,-500.0,0.00030136,2]
[312350118,1705812642732,-1308.11,0.00030136,2]
[312350120,1705812642741,-500.0,0.00030136,2]
[312350122,1705812642750,-234.44431672,0.00030136,2]
[312350124,1705812642759,-500.0,0.00030136,2]
[312350125,1705812642768,-521.26,0.00030136,2]
[312350127,1705812642777,-500.0,0.00030136,2]
[312350129,1705812642786,-500.0,0.00030136,2]
[312350130,1705812642795,-500.0,0.00030136,2]
[312350132,1705812642805,-676.98,0.00030136,2]
[312350133,1705812642814,-836.6,0.00030136,2]
[312350134,1705812642824,-813.09,0.00030136,2]
[312350135,1705812642833,-2486.4,0.00030136,2]
[312350136,1705812642844,-500.0,0.00030136,2]
[312350137,1705812642854,-500.0,0.00030136,2]
[312350138,1705812642863,-702.19,0.00030136,2]
[312350139,1705812642873,-500.0,0.00030136,2]
[312350140,1705812642883,-500.0,0.00030136,2]
[312350142,1705812642893,-808.91,0.00030136,2]
[312350144,1705812642902,-500.0,0.00030136,2]
[312350145,1705812642912,-952.96,0.00030136,2]
[312350146,1705812642922,-500.0,0.00030136,2]
[312350147,1705812642932,-1000.0,0.00030136,2]
[312350148,1705812642941,-500.0,0.00030136,2]
[312350149,1705812642950,-1621.49,0.00030136,2]
[312350150,1705812642959,-500.0,0.00030136,2]
[312350151,1705812642968,-500.0,0.00030136,2]
[312350152,1705812642979,-500.0,0.00030136,2]
[312350153,1705812642989,-500.0,0.00030136,2]
[312350154,1705812643000,-213.03649456,0.00030136,2]
[312350155,1705812643010,-500.0,0.00030136,2]
[312350156,1705812643020,-2235.54,0.00030136,2]
[312350157,1705812643029,-500.0,0.00030136,2]
[312350158,1705812643039,-499.23275252,0.00030136,2]
[312350159,1705812643048,-500.0,0.00030136,2]
[312350160,1705812643057,-500.0,0.00030136,2]
[312350161,1705812643066,-501.47010298,0.00030136,2]
[312350162,1705812643075,-500.0,0.00030136,2]
[312350163,1705812643084,-500.0,0.00030136,2]
[312350164,1705812643093,-529.46,0.00030136,2]
[312350165,1705812643102,-500.0,0.00030136,2]
[312350166,1705812643111,-500.0,0.00030136,2]
[312350167,1705812643121,-500.0,0.00030136,2]
[312350168,1705812643130,-1080.67,0.00030136,2]
[312350169,1705812643139,-500.0,0.00030136,2]
[312350170,1705812643148,-500.0,0.00030136,2]
[312350171,1705812643158,-501.56476935,0.00030136,2]
[312350172,1705812643167,-515.76613026,0.00030136,2]
[312350173,1705812643176,-500.0,0.00030136,2]
[312350174,1705812643185,-500.0,0.00030136,2]
[312350175,1705812643194,-500.0,0.00030136,2]
[312350176,1705812643203,-500.0,0.00030136,2]